[Event "IIFL Wealth 4th Mumbai Open"]
[Site "Mumbai"]
[Date "2018.12.31"]
[Round "2"]
[White "Raghav, Srivathsav V"]
[Black "Aditya, Ramanathan"]
[Result "0-1"]
[ECO "A01"]
[WhiteElo "2056"]
[BlackElo "1493"]
[Annotator "NA"]
[PlyCount "112"]
[EventDate "2018.12.30"]
[EventType "swiss"]
[EventCountry "IND"]
[SourceTitle "playchess.com"]
[Source "ChessBase"]
[SourceQuality "1"]
[TimeControl "40/5400+30:1800+30"]

1. b3 {[%emt 0:03:21]} Nf6 {[%emt 0:00:00]} 2. Bb2 {[%emt 0:00:08]} g6 {[%emt 0:00:00]} 3. e4 {[%emt 0:00:12]} Bg7 {[%emt 0:00:47]} 4. g3 {[%emt 0:00:12]} O-O {[%emt 0:00:15]} 5. Bg2 {[%emt 0:00:10]} d6 {[%emt 0:00:19]} 6. Ne2 {[%emt 0:00:07]} c5 {[%emt 0:00:19]} 7. O-O {[%emt 0:00:13]} Nc6 {[%emt 0:00:23]} 8. Nbc3 {[%emt 0:00:47]} e6 {[%emt 0:00:47]} 9. f4 {[%emt 0:00:27]} a6 {[%emt 0:02:42]} 10. h3 {[%emt 0:01:59]} d5 {[%emt 0:02:57]} 11. e5 {[%emt 0:02:14]} Nd7 {[%emt 0:01:11]} 12. a4 {[%emt 0:00:30]} f5 {[%emt 0:02:43]} 13. exf6 {[%emt 0:01:13]} Nxf6 {[%emt 0:01:20]} 14. Ba3 {[%emt 0:00:57]} d4 {[%emt 0:01:11]} 15. Ne4 {[%emt 0:00:56]} Nxe4 {[%emt 0:00:10]} 16. Bxe4 {[%emt 0:00:08]} d3 {[%emt 0:00:45]} 17. Bxd3 {[%emt 0:03:06]} Bxa1 {[%emt 0:00:12]} 18. Qxa1 {[%emt 0:00:09]} b6 {[%emt 0:03:54]} 19. Be4 {[%emt 0:01:59]} Bb7 {[%emt 0:02:31]} 20. d3 {[%emt 0:00:17]} Qd7 {[%emt 0:00:44]} 21. Bb2 {[%emt 0:05:16]} Nb4 {[%emt 0:04:01]} 22. Bxb7 {[%emt 0:01:50]} Qxb7 {[%emt 0:00:23]} 23. Qe1 {[%emt 0:00:36]} e5 {[%emt 0:10:59]} 24. Qd2 {[%emt 0:04:05]} Qd7 {[%emt 0:04:10]} 25. Bxe5 {[%emt 0:03:54]} Qxh3 {[%emt 0:00:26]} 26. Rf2 {[%emt 0:07:04]} Rae8 {[%emt 0:04:44]} 27. Rg2 {[%emt 0:06:22]} Nc6 {[%emt 0:04:53]} 28. Bb2 {[%emt 0:00:23]} Qg4 {[%emt 0:08:20]} 29. b4 {[%emt 0:10:53]} cxb4 {[%emt 0:12:18]} 30. d4 {[%emt 0:00:50]} Qf3 {[%emt 0:02:17]} 31. d5 {[%emt 0:01:20]} Rd8 {[%emt 0:00:58]} 32. c4 {[%emt 0:02:14]} bxc3 {[%emt 0:00:21]} 33. Nxc3 {[%emt 0:00:08]} Ne7 {[%emt 0:04:17]} 34. Qd4 {[%emt 0:02:29]} Nf5 {[%emt 0:00:48]} 35. Qxb6 {[%emt 0:01:09]} Ne3 {[%emt 0:01:28]} 36. Qe6+ {[%emt 0:00:15]} Rf7 {[%emt 0:00:11]} 37. Re2 {[%emt 0:00:38]} Qxg3+ {[%emt 0:00:49]} 38. Kh1 {[%emt 0:00:06]} Qf3+ {[%emt 0:00:33]} 39. Kg1 {[%emt 0:01:39]} Qf1+ {[%emt 0:00:09]} 40. Kh2 {[%emt 0:00:00]} Qxf4+ {[%emt 0:00:00]} 41. Kg1 {[%emt 0:03:55]} Qg5+ {[%emt 0:01:50]} 42. Kh1 {[%emt 0:01:19]} Nxd5 {[%emt 0:03:46]} 43. Ne4 {[%emt 0:08:02]} Qh4+ {[%emt 0:08:36]} 44. Kg1 {[%emt 0:02:47]} Nf4 {[%emt 0:01:57]} 45. Nf6+ {[%emt 0:04:37]} Qxf6 {[%emt 0:01:20]} 46. Bxf6 {[%emt 0:00:39]} Nxe6 {[%emt 0:00:05]} 47. Rxe6 {[%emt 0:00:04]} Rd2 {[%emt 0:01:57]} 48. Bg5 {[%emt 0:01:16]} Ra2 {[%emt 0:03:30]} 49. Rxa6 {[%emt 0:00:24]} Rb7 {[%emt 0:01:02]} 50. Rf6 {[%emt 0:01:14]} Rb1+ {[%emt 0:00:09]} 51. Rf1 {[%emt 0:00:06]} Rxf1+ {[%emt 0:00:06]} 52. Kxf1 {[%emt 0:00:04]} Rxa4 {[%emt 0:00:06]} 53. Ke2 {[%emt 0:00:05]} Kg7 {[%emt 0:00:12]} 54. Kf3 {[%emt 0:00:05]} h6 {[%emt 0:00:06]} 55. Be3 {[%emt 0:00:19]} g5 {[%emt 0:00:23]} 56. Kg2 {[%emt 0:00:30]} Kg6 {[%emt 0:00:08]} 0-1

[Event "IIFL Wealth 4th Mumbai Open"]
[Site "Mumbai"]
[Date "2018.12.31"]
[Round "2"]
[White "Samrat, Ghorai"]
[Black "Shravan, Swaminathan"]
[Result "1-0"]
[ECO "B10"]
[WhiteElo "1984"]
[BlackElo "1488"]
[Annotator "NA"]
[PlyCount "57"]
[EventDate "2018.12.30"]
[EventType "swiss"]
[EventCountry "IND"]
[SourceTitle "playchess.com"]
[Source "ChessBase"]
[SourceQuality "1"]
[TimeControl "40/5400+30:1800+30"]

1. e4 c6 2. Nc3 d5 3. Nf3 d4 4. Ne2 c5 5. c3 dxc3 6. bxc3 Nf6 7. Ng3 e6 8. Bc4 Be7 9. O-O O-O 10. d4 cxd4 11. cxd4 b6 12. Qe2 Bb7 13. Rd1 Nbd7 14. Bb2 Rc8 15. Rac1 Rc7 16. Bb3 Rxc1 17. Bxc1 Qa8 18. Nd2 Nb8 19. d5 exd5 20. e5 Ne4 21. Ndxe4 dxe4 22. Nf5 Nc6 23. Rd7 Re8 24. Qg4 g6 25. Nh6+ Kg7 26. Qf4 Rf8 27. Rxe7 Rd8 28. Qxf7+ Kh8 29. Qg7# 1-0

[Event "IIFL Wealth 4th Mumbai Open"]
[Site "Mumbai"]
[Date "2018.12.31"]
[Round "2"]
[White "Kothari, Swapnil"]
[Black "Gupta, R K"]
[Result "1-0"]
[ECO "A43"]
[WhiteElo "1870"]
[BlackElo "1480"]
[Annotator "NA"]
[PlyCount "81"]
[EventDate "2018.12.30"]
[EventType "swiss"]
[EventCountry "IND"]
[SourceTitle "playchess.com"]
[Source "ChessBase"]
[SourceQuality "1"]
[TimeControl "40/5400+30:1800+30"]

1. d4 {[%emt 0:13:07]} c5 {[%emt 0:00:00]} 2. dxc5 {[%emt 0:00:06]} e6 {[%emt 0:00:00]} 3. c4 {[%emt 0:00:17]} Bxc5 {[%emt 0:00:52]} 4. Nc3 {[%emt 0:00:14]} Nf6 {[%emt 0:00:36]} 5. Nf3 {[%emt 0:04:05]} h6 {[%emt 0:00:34]} 6. e3 {[%emt 0:01:14]} Nc6 {[%emt 0:01:31]} 7. Be2 {[%emt 0:00:28]} d5 {[%emt 0:00:12]} 8. O-O {[%emt 0:01:10]} a6 {[%emt 0:01:43]} 9. a3 {[%emt 0:00:54]} dxc4 {[%emt 0:00:14]} 10. Qa4 {[%emt 0:01:58]} O-O {[%emt 0:00:53]} 11. Qxc4 {[%emt 0:00:36]} Qe7 {[%emt 0:00:45]} 12. b4 {[%emt 0:00:26]} Bd6 {[%emt 0:01:26]} 13. Bb2 {[%emt 0:00:19]} Ne5 {[%emt 0:00:12]} 14. Qb3 {[%emt 0:06:07]} Bd7 {[%emt 0:00:29]} 15. b5 {[%emt 0:01:43]} Rab8 {[%emt 0:01:13]} 16. Rfd1 {[%emt 0:01:04]} Nxf3+ {[%emt 0:00:18]} 17. Bxf3 {[%emt 0:00:19]} e5 {[%emt 0:00:06]} 18. Nd5 {[%emt 0:01:23]} Nxd5 {[%emt 0:02:19]} 19. Qxd5 {[%emt 0:00:29]} e4 {[%emt 0:01:31]} 20. Qxd6 {[%emt 0:03:52]} Qg5 {[%emt 0:02:01]} 21. Qxd7 {[%emt 0:03:51]} exf3 {[%emt 0:00:11]} 22. Qh3 {[%emt 0:00:22]} Qxb5 {[%emt 0:00:12]} 23. Rab1 {[%emt 0:00:43]} Rbd8 {[%emt 0:01:19]} 24. Bd4 {[%emt 0:00:30]} Qa4 {[%emt 0:00:34]} 25. Qxf3 {[%emt 0:00:52]} b5 {[%emt 0:00:17]} 26. Rdc1 {[%emt 0:01:50]} Rd6 {[%emt 0:00:52]} 27. h4 {[%emt 0:06:11]} Rg6 28. Qf5 {[%emt 0:02:57]} Qa5 {[%emt 0:08:34]} 29. Rc2 {[%emt 0:03:45]} Qd8 {[%emt 0:02:00]} 30. g3 {[%emt 0:01:02]} Re8 {[%emt 0:01:28]} 31. Rbc1 {[%emt 0:00:19]} Rge6 {[%emt 0:02:02]} 32. Rc7 {[%emt 0:00:28]} f6 {[%emt 0:02:41]} 33. Qg4 {[%emt 0:02:09]} R6e7 {[%emt 0:01:31]} 34. Rc8 {[%emt 0:00:41]} Qd5 {[%emt 0:01:01]} 35. Bxf6 {[%emt 0:00:30]} h5 {[%emt 0:02:11]} 36. Rxe8+ {[%emt 0:00:50]} Kh7 {[%emt 0:00:15]} 37. Rxe7 {[%emt 0:03:03]} hxg4 {[%emt 0:00:07]} 38. Rxg7+ {[%emt 0:00:06]} Kh6 {[%emt 0:00:06]} 39. Rc8 {[%emt 0:00:24]} Qd1+ 40. Kh2 Qd8 {[%emt 0:03:40]} 41. Rc1 {[%emt 0:31:00]} 1-0

[Event "IIFL Wealth 4th Mumbai Open"]
[Site "Mumbai"]
[Date "2018.12.31"]
[Round "2"]
[White "Krishnan, Ritvik"]
[Black "Yuti, Mayur Patel"]
[Result "1/2-1/2"]
[ECO "C50"]
[WhiteElo "1812"]
[BlackElo "1476"]
[Annotator "NA"]
[PlyCount "93"]
[EventDate "2018.12.30"]
[EventType "swiss"]
[EventCountry "IND"]
[SourceTitle "playchess.com"]
[Source "ChessBase"]
[SourceQuality "1"]
[TimeControl "40/5400+30:1800+30"]

1. e4 {[%emt 0:00:00]} e5 {[%emt 0:00:00]} 2. Bc4 {[%emt 0:00:13]} Nf6 {[%emt 0:00:00]} 3. d3 {[%emt 0:00:04]} Bc5 {[%emt 0:00:05]} 4. Nf3 {[%emt 0:00:08]} Nc6 {[%emt 0:00:15]} 5. c3 {[%emt 0:00:04]} d6 {[%emt 0:00:15]} 6. Bb3 {[%emt 0:00:04]} O-O {[%emt 0:00:16]} 7. Bg5 {[%emt 0:00:09]} Be6 {[%emt 0:00:57]} 8. h3 {[%emt 0:00:06]} h6 {[%emt 0:00:30]} 9. Bh4 {[%emt 0:00:02]} Bxb3 {[%emt 0:04:09]} 10. axb3 {[%emt 0:00:07]} Qe7 {[%emt 0:03:12]} 11. Nbd2 {[%emt 0:02:39]} Qe6 {[%emt 0:01:33]} 12. Nh2 {[%emt 0:02:24]} Ne7 {[%emt 0:02:49]} 13. g4 {[%emt 0:03:12]} Ng6 {[%emt 0:10:43]} 14. Bg3 {[%emt 0:00:17]} d5 {[%emt 0:01:52]} 15. h4 {[%emt 0:02:39]} dxe4 {[%emt 0:03:04]} 16. dxe4 Rad8 {[%emt 0:01:59]} 17. Qe2 {[%emt 0:01:44]} Nh7 {[%emt 0:04:45]} 18. O-O-O {[%emt 0:03:22]} Be7 {[%emt 0:06:51]} 19. Nhf1 {[%emt 0:01:57]} Nf4 {[%emt 0:04:41]} 20. Bxf4 {[%emt 0:00:46]} exf4 {[%emt 0:00:03]} 21. Qf3 {[%emt 0:02:48]} Qd6 {[%emt 0:08:33]} 22. g5 {[%emt 0:06:46]} hxg5 {[%emt 0:00:48]} 23. hxg5 {[%emt 0:00:07]} Bxg5 {[%emt 0:00:13]} 24. Nh2 {[%emt 0:01:42]} Qd3 {[%emt 0:11:18]} 25. Qg2 {[%emt 0:01:45]} Rd6 {[%emt 0:06:47]} 26. Nhf3 {[%emt 0:00:42]} Ra6 {[%emt 0:05:12]} 27. Nb1 {[%emt 0:01:37]} Qxe4 {[%emt 0:00:45]} 28. Rxh7 {[%emt 0:12:49]} Qxh7 {[%emt 0:00:04]} 29. Qxg5 {[%emt 0:00:50]} Qh6 {[%emt 0:05:40]} 30. Qe5 {[%emt 0:03:49]} Rd6 {[%emt 0:02:52]} 31. Rg1 {[%emt 0:01:02]} Rfd8 {[%emt 0:02:07]} 32. Nbd2 {[%emt 0:01:48]} Qf6 {[%emt 0:02:00]} 33. Qh5 {[%emt 0:07:12]} Qh6 34. Qf5 {[%emt 0:00:23]} Rd5 {[%emt 0:07:16]} 35. Qc2 {[%emt 0:03:30]} Qa6 {[%emt 0:02:42]} 36. c4 {[%emt 0:19:01]} Rd3 {[%emt 0:01:43]} 37. Kb1 {[%emt 0:00:34]} Qd6 {[%emt 0:00:47]} 38. c5 {[%emt 0:03:50]} Qd5 {[%emt 0:01:11]} 39. Rg5 {[%emt 0:01:32]} Qe6 {[%emt 0:00:31]} 40. Re5 {[%emt 0:00:00]} Qf6 {[%emt 0:00:00]} 41. Re1 {[%emt 0:06:56]} g6 {[%emt 0:05:14]} 42. Ne4 {[%emt 0:13:14]} Qe6 43. Ned2 {[%emt 0:02:14]} Qd5 {[%emt 0:05:56]} 44. Re5 {[%emt 0:00:56]} Qc6 {[%emt 0:00:36]} 45. Rg5 {[%emt 0:02:16]} Rxf3 {[%emt 0:08:12]} 46. Nxf3 {[%emt 0:00:02]} Qxf3 {[%emt 0:00:07]} 47. Rxg6+ {[%emt 0:00:13]} 1/2-1/2

[Event "IIFL Wealth 4th Mumbai Open"]
[Site "Mumbai"]
[Date "2018.12.31"]
[Round "2"]
[White "Tanuj, Dayal"]
[Black "Adireddy, Arjun"]
[Result "1-0"]
[ECO "C70"]
[WhiteElo "1803"]
[BlackElo "1468"]
[Annotator "NA"]
[PlyCount "111"]
[EventDate "2018.12.30"]
[EventType "swiss"]
[EventCountry "IND"]
[SourceTitle "playchess.com"]
[Source "ChessBase"]
[SourceQuality "1"]
[TimeControl "40/5400+30:1800+30"]

1. e4 e5 2. Nf3 Nc6 3. Bb5 a6 4. Ba4 g6 5. O-O Bg7 6. c3 Nge7 7. d4 exd4 8. cxd4 d5 9. e5 O-O 10. h3 f6 11. Re1 fxe5 12. dxe5 Bf5 13. Bg5 b5 14. Bb3 h6 15. Bxe7 Nxe7 16. Nc3 c6 17. Nd4 Kh7 18. Nf3 Kg8 19. Nd4 Kh7 20. Rc1 Qd7 21. Ra1 Qd8 22. Rc1 Qd7 23. e6 Qd6 24. Bc2 Qd8 25. Bb3 Qd6 26. Bc2 Qd8 27. Bb3 Qd6 28. Bc2 Bxc2 29. Rxc2 c5 30. Nf3 Rad8 31. Nd4 Ra8 32. Nf3 Rad8 33. Rd2 Ra8 34. Rc2 Rad8 35. Rd2 Qc6 36. Rc2 Qd6 37. Rd2 Qc6 38. Ne5 Qxe6 39. Nxg6 Qxg6 40. Rxe7 d4 41. Ne4 Rf7 42. Rxf7 Qxf7 43. Nxc5 Qxa2 44. b3 Qa3 45. Ne6 Qa2 46. Nc5 Qa3 47. Ne6 Re8 48. Nc5 Rd8 49. Ne6 Re8 50. Nxg7 Kxg7 51. Rxd4 Qc5 52. Rg4+ Kh8 53. Qd2 Qc6 54. Qd1 Qc5 55. Qd2 Qc6 56. Qd4+ 1-0

[Event "IIFL Wealth 4th Mumbai Open"]
[Site "Mumbai"]
[Date "2018.12.31"]
[Round "2"]
[White "Abhinessh, S."]
[Black "Varshita, Jain"]
[Result "1-0"]
[ECO "C24"]
[WhiteElo "1790"]
[BlackElo "1461"]
[Annotator "NA"]
[PlyCount "177"]
[EventDate "2018.12.30"]
[EventType "swiss"]
[EventCountry "IND"]
[SourceTitle "playchess.com"]
[Source "ChessBase"]
[SourceQuality "1"]
[TimeControl "40/5400+30:1800+30"]

1. e4 {[%emt 0:00:00]} e5 {[%emt 0:00:00]} 2. Bc4 {[%emt 0:00:00]} Nf6 {[%emt 0:00:00]} 3. d3 {[%emt 0:00:00]} Bc5 {[%emt 0:00:40]} 4. Nc3 {[%emt 0:00:20]} h6 {[%emt 0:00:39]} 5. f4 {[%emt 0:01:08]} d6 {[%emt 0:02:02]} 6. Nf3 {[%emt 0:05:35]} a6 {[%emt 0:00:30]} 7. Qe2 {[%emt 0:07:00]} Nc6 {[%emt 0:14:23]} 8. Qd1 {[%emt 0:00:00]} Nb8 {[%emt 0:00:00]} 9. Qe2 {[%emt 0:01:00]} Nc6 {[%emt 0:01:00]} 10. Be3 {[%emt 0:07:06]} Nb8 {[%emt 0:00:00]} 11. Bc1 {[%emt 0:00:00]} Nc6 {[%emt 0:01:00]} 12. Be3 {[%emt 0:01:00]} Nd4 {[%emt 0:12:05]} 13. Bxd4 {[%emt 0:05:54]} exd4 {[%emt 0:03:50]} 14. Nd5 {[%emt 0:05:45]} O-O {[%emt 0:02:55]} 15. O-O {[%emt 0:04:36]} c6 {[%emt 0:04:10]} 16. Nxf6+ {[%emt 0:02:26]} Qxf6 {[%emt 0:00:11]} 17. Qd2 {[%emt 0:00:00]} Qd8 18. Qe2 {[%emt 0:03:13]} Qf6 {[%emt 0:01:00]} 19. Qd2 {[%emt 0:00:00]} Qd8 20. Qe2 {[%emt 0:01:00]} Qf6 {[%emt 0:01:00]} 21. Qd2 {[%emt 0:00:00]} Qd8 22. Qe2 {[%emt 0:01:00]} Qf6 {[%emt 0:01:00]} 23. Qd2 {[%emt 0:00:00]} Qd8 24. Qe2 {[%emt 0:01:00]} Qf6 {[%emt 0:01:00]} 25. Qd2 {[%emt 0:00:00]} Qd8 26. Qe2 {[%emt 0:01:00]} Qf6 {[%emt 0:01:00]} 27. Qd2 {[%emt 0:00:30]} a5 {[%emt 0:05:57]} 28. a3 {[%emt 0:03:06]} b5 {[%emt 0:00:45]} 29. Ba2 {[%emt 0:00:54]} Bb6 {[%emt 0:00:00]} 30. Bc4 {[%emt 0:00:06]} Bc5 {[%emt 0:01:00]} 31. Ba2 {[%emt 0:00:54]} Bb6 {[%emt 0:01:16]} 32. Bc4 {[%emt 0:00:06]} Bc5 {[%emt 0:00:00]} 33. Ba2 {[%emt 0:00:54]} Bb6 {[%emt 0:01:00]} 34. Bc4 {[%emt 0:00:06]} Bc5 {[%emt 0:00:00]} 35. Ba2 {[%emt 0:00:54]} Bb6 {[%emt 0:00:00]} 36. Kh1 {[%emt 0:00:00]} Bc5 {[%emt 0:00:44]} 37. Kg1 {[%emt 0:01:00]} Bb6 {[%emt 0:04:22]} 38. Kh1 {[%emt 0:06:45]} c5 {[%emt 0:00:00]} 39. Bd5 {[%emt 0:03:01]} Rb8 {[%emt 0:00:00]} 40. Ba2 {[%emt 0:00:00]} Ra8 {[%emt 0:01:22]} 41. Bd5 {[%emt 0:31:00]} Rb8 {[%emt 0:00:00]} 42. Ba2 {[%emt 0:00:00]} Ra8 {[%emt 0:31:00]} 43. Bd5 {[%emt 0:01:00]} Rb8 {[%emt 0:02:33]} 44. Ba2 {[%emt 0:00:00]} Ra8 {[%emt 0:00:00]} 45. Bd5 {[%emt 0:01:00]} Rb8 {[%emt 0:01:02]} 46. Rae1 {[%emt 0:03:30]} Bb7 {[%emt 0:03:54]} 47. Bxb7 {[%emt 0:01:26]} Rxb7 {[%emt 0:00:00]} 48. Ra1 {[%emt 0:00:00]} Rbb8 {[%emt 0:01:00]} 49. Rae1 {[%emt 0:02:44]} Rb7 {[%emt 0:00:08]} 50. e5 {[%emt 0:01:08]} Qe7 {[%emt 0:03:28]} 51. f5 {[%emt 0:00:27]} dxe5 {[%emt 0:02:06]} 52. Nxe5 {[%emt 0:01:01]} Qf6 {[%emt 0:01:38]} 53. Nf3 {[%emt 0:00:30]} Qe7 {[%emt 0:00:00]} 54. Ne5 {[%emt 0:00:30]} Qf6 {[%emt 0:01:00]} 55. Qe2 {[%emt 0:05:51]} Qe7 {[%emt 0:00:00]} 56. Qd2 {[%emt 0:00:00]} Qf6 {[%emt 0:01:00]} 57. Qe2 {[%emt 0:01:00]} Qe7 {[%emt 0:00:00]} 58. Qd2 {[%emt 0:00:00]} Qf6 {[%emt 0:01:00]} 59. Qe2 {[%emt 0:01:00]} Bc7 {[%emt 0:06:11]} 60. Qd2 {[%emt 0:00:00]} Bb6 {[%emt 0:00:00]} 61. Qe2 {[%emt 0:01:00]} Bc7 {[%emt 0:00:00]} 62. Qd2 {[%emt 0:00:00]} Bb6 {[%emt 0:00:00]} 63. Qe2 {[%emt 0:01:00]} Bc7 {[%emt 0:02:00]} 64. Qd2 {[%emt 0:00:00]} Bb6 {[%emt 0:00:00]} 65. Qe2 {[%emt 0:01:00]} Bc7 {[%emt 0:01:00]} 66. Qd2 {[%emt 0:00:00]} Bb6 {[%emt 0:00:00]} 67. Qe2 {[%emt 0:01:00]} Bc7 {[%emt 0:01:00]} 68. Qd2 {[%emt 0:00:00]} Bb6 {[%emt 0:00:00]} 69. Qe2 {[%emt 0:01:00]} Bc7 {[%emt 0:01:00]} 70. Ng4 {[%emt 0:08:37]} Qh4 {[%emt 0:06:24]} 71. Qf3 {[%emt 0:01:50]} Qf6 {[%emt 0:00:00]} 72. Qe2 {[%emt 0:00:00]} Qh4 {[%emt 0:01:00]} 73. Qf3 {[%emt 0:01:00]} Qf6 {[%emt 0:00:00]} 74. Qe2 {[%emt 0:00:00]} Qh4 {[%emt 0:01:00]} 75. Qf3 {[%emt 0:01:00]} h5 {[%emt 0:08:46]} 76. Qxb7 {[%emt 0:04:30]} Bg3 {[%emt 0:00:08]} 77. Re4 {[%emt 0:00:20]} Bc7 78. Ree1 {[%emt 0:00:40]} Bg3 {[%emt 0:01:00]} 79. Re4 {[%emt 0:00:20]} hxg4 {[%emt 0:02:58]} 80. h3 {[%emt 0:00:06]} Bb8 {[%emt 0:04:09]} 81. Rxg4 {[%emt 0:00:12]} Bg3 {[%emt 0:00:00]} 82. Re4 {[%emt 0:00:48]} Bb8 {[%emt 0:01:41]} 83. Rg4 {[%emt 0:00:00]} Bg3 {[%emt 0:00:00]} 84. Re4 {[%emt 0:01:00]} Bb8 {[%emt 0:01:00]} 85. Rg4 {[%emt 0:00:25]} Qf6 {[%emt 0:00:00]} 86. Qd5 {[%emt 0:02:15]} Qh4 {[%emt 0:01:00]} 87. Qb7 {[%emt 0:00:00]} Qf6 {[%emt 0:02:20]} 88. Qd5 g6 {[%emt 0:01:21]} 89. Rxg6+ {[%emt 0:01:19]} 1-0

[Event "IIFL Wealth 4th Mumbai Open"]
[Site "Mumbai"]
[Date "2018.12.31"]
[Round "2"]
[White "Bhagyashree, Patil"]
[Black "Golvankar, Dilip K"]
[Result "*"]
[ECO "B07"]
[WhiteElo "1758"]
[BlackElo "1456"]
[Annotator "NA"]
[PlyCount "147"]
[EventDate "2018.12.30"]
[EventType "swiss"]
[EventCountry "IND"]
[SourceTitle "playchess.com"]
[Source "ChessBase"]
[SourceQuality "1"]
[TimeControl "40/5400+30:1800+30"]

1. e4 {[%emt 0:00:00]} d6 {[%emt 0:00:00]} 2. d4 {[%emt 0:00:00]} Nf6 {[%emt 0:00:00]} 3. Nc3 {[%emt 0:01:51]} Nbd7 {[%emt 0:00:00]} 4. f4 {[%emt 0:05:36]} c5 {[%emt 0:04:16]} 5. d5 {[%emt 0:02:45]} g6 {[%emt 0:00:07]} 6. Nf3 {[%emt 0:02:26]} Qc7 {[%emt 0:04:13]} 7. Qe2 {[%emt 0:00:00]} Qd8 {[%emt 0:00:00]} 8. Qd1 {[%emt 0:01:00]} Qc7 {[%emt 0:03:14]} 9. Qe2 Nb6 {[%emt 0:01:07]} 10. Nb5 {[%emt 0:03:20]} Qb8 {[%emt 0:00:08]} 11. c4 {[%emt 0:00:10]} a6 {[%emt 0:08:25]} 12. Nc3 {[%emt 0:02:02]} Bg4 {[%emt 0:00:50]} 13. h3 {[%emt 0:01:13]} Bxf3 {[%emt 0:00:11]} 14. Qxf3 {[%emt 0:00:05]} Bg7 {[%emt 0:00:32]} 15. g4 {[%emt 0:02:16]} Qc7 16. Be2 {[%emt 0:04:22]} O-O-O {[%emt 0:05:03]} 17. Be3 {[%emt 0:00:30]} e6 {[%emt 0:08:09]} 18. Bd3 {[%emt 0:11:45]} exd5 {[%emt 0:02:00]} 19. exd5 {[%emt 0:02:00]} Rhe8 {[%emt 0:01:00]} 20. O-O-O {[%emt 0:00:47]} Re7 {[%emt 0:00:50]} 21. Bd2 {[%emt 0:01:12]} Rde8 {[%emt 0:00:24]} 22. h4 {[%emt 0:01:51]} h5 {[%emt 0:06:02]} 23. g5 {[%emt 0:05:01]} Ng4 {[%emt 0:02:02]} 24. f5 {[%emt 0:04:25]} Bxc3 {[%emt 0:01:12]} 25. Bxc3 {[%emt 0:03:02]} Ne3 {[%emt 0:02:14]} 26. Bd2 {[%emt 0:00:30]} Ng4 {[%emt 0:00:00]} 27. Bc3 {[%emt 0:00:30]} Ne3 {[%emt 0:01:33]} 28. fxg6 {[%emt 0:01:51]} fxg6 {[%emt 0:01:17]} 29. Bxg6 {[%emt 0:02:02]} Nxd1 {[%emt 0:01:04]} 30. Rxd1 {[%emt 0:00:40]} Nxc4 {[%emt 0:05:30]} 31. Bxe8 {[%emt 0:07:21]} Rxe8 {[%emt 0:00:06]} 32. Qxh5 {[%emt 0:00:05]} Qd7 {[%emt 0:00:00]} 33. g6 {[%emt 0:03:57]} Ne5 {[%emt 0:05:05]} 34. Bxe5 {[%emt 0:03:33]} Rxe5 {[%emt 0:00:14]} 35. Qh8+ {[%emt 0:00:38]} Re8 {[%emt 0:00:18]} 36. Qh5 {[%emt 0:00:22]} Re5 {[%emt 0:00:42]} 37. Qh8+ {[%emt 0:00:38]} Re8 38. g7 {[%emt 0:02:03]} Qd8 {[%emt 0:00:55]} 39. Qh7 {[%emt 0:00:49]} Rg8 {[%emt 0:00:22]} 40. Rf1 {[%emt 0:00:10]} Kc7 {[%emt 0:00:56]} 41. Rd1 {[%emt 0:30:50]} Kc8 {[%emt 0:30:04]} 42. Rf1 {[%emt 0:00:10]} Kc7 {[%emt 0:00:56]} 43. Rd1 {[%emt 0:00:50]} Kc8 {[%emt 0:00:04]} 44. Rf1 {[%emt 0:00:10]} Kc7 {[%emt 0:00:56]} 45. h5 {[%emt 0:03:07]} Qg5+ {[%emt 0:02:32]} 46. Kb1 {[%emt 0:02:19]} Rxg7 {[%emt 0:01:56]} 47. Qf5 {[%emt 0:00:14]} Qd2 {[%emt 0:01:27]} 48. Qf6 {[%emt 0:04:39]} Qg5 {[%emt 0:00:00]} 49. Qf5 {[%emt 0:00:00]} Qd2 {[%emt 0:01:00]} 50. Qf6 {[%emt 0:01:00]} Rg2 {[%emt 0:02:38]} 51. Qf5 {[%emt 0:00:00]} Rg7 {[%emt 0:00:00]} 52. Qf6 {[%emt 0:01:00]} Rg2 {[%emt 0:00:00]} 53. Qf5 {[%emt 0:00:00]} Rg7 {[%emt 0:00:00]} 54. Qf6 {[%emt 0:01:00]} Rg2 {[%emt 0:02:00]} 55. Qf5 {[%emt 0:00:00]} Rg7 {[%emt 0:00:00]} 56. Qf6 {[%emt 0:01:00]} Rg2 57. Qe7+ {[%emt 0:06:40]} Kb6 {[%emt 0:01:04]} 58. Qxd6+ {[%emt 0:00:00]} Kb5 {[%emt 0:00:00]} 59. Qf6 {[%emt 0:00:00] Kb6 [%clk 1:04:02] Qd6+ [%clk 0:43:06] Kb5 [%clk 1:04:02] Qf6 [%clk 0:18:53] Kb6 [%clk 1:04:02] Qd6+ [%clk 0:43:06] Kb5 [%clk 1:27:52] Qf6 [%clk 0:18:53] Kb6 [%clk 1:04:02] Qd6+ [%clk 0:43:06] Kb5 [%clk 1:04:02] Qf6 [%clk 0:37:04]} Qd3+ {[%emt 0:00:00]} 60. Ka1 {[%emt 0:00:00]} Qxd5 {[%emt 0:00:00]} 61. Rc1 {[%emt 0:00:00]} Rh2 {[%emt 0:00:00]} 62. Rf1 {[%emt 0:00:00]} Rg2 {[%emt 0:00:00]} 63. Rc1 {[%emt 0:00:00]} Rh2 {[%emt 0:00:00]} 64. h6 {[%emt 0:00:00]} Qd4 {[%emt 0:00:00]} 65. Qf1+ {[%emt 0:00:00]} Kb6 {[%emt 0:00:00]} 66. Rb1 {[%emt 0:00:00]} Rxh6 {[%emt 0:00:00]} 67. Rd1 {[%emt 0:00:00]} Rf6 {[%emt 0:00:00]} 68. Qe1 {[%emt 0:00:00]} Qf2 {[%emt 0:00:00]} 69. Qe7 {[%emt 0:00:00]} Ka7 {[%emt 0:00:00]} 70. Qe1 {[%emt 0:00:00]} Kb6 {[%emt 0:00:00]} 71. Qe7 {[%emt 0:00:00]} Ka7 {[%emt 0:00:00]} 72. a3 {[%emt 0:00:00]} Rb6 {[%emt 0:00:00]} 73. Qe5 {[%emt 0:00:00]} Qf6 {[%emt 0:00:00]} 74. Qe2 {[%emt 0:00:00]} *